[Event "Titled Tuesday Blitz June 14 Late 2022"]
[White "Kosteniuk, Alexandra"]
[Black "Zhurbinsky, David"]
[WhiteFideId "4128125"]
[BlackFideId "2072904"]
[WhiteElo "2469"]
[BlackElo "2579"]
[Result "1-0"]
[Round "09"]
[TimeControl "180+1"]
[Date "2022.06.14"]
[WhiteClock "0:00:21"]
[BlackClock "0:00:14"]

1. e4 {[%clk 0:03:00]}  e5 {[%clk 0:03:00]} 2. Nf3 {[%clk 0:03:00]}  Nc6 {[%clk 0:02:59]} 3. Bc4 {[%clk 0:03:00]}  Bc5 {[%clk 0:02:59]} 4. c3 {[%clk 0:03:01]}  Nf6 {[%clk 0:02:59]} 5. d4 {[%clk 0:03:01]}  exd4 {[%clk 0:03:00]} 6. cxd4 {[%clk 0:03:02]}  Bb4+ {[%clk 0:03:00]} 7. Nbd2 {[%clk 0:03:02]}  Nxe4 {[%clk 0:03:01]} 8. d5 {[%clk 0:03:03]}  Ne7 {[%clk 0:02:49]} 9. O-O {[%clk 0:02:49]}  Nxd2 {[%clk 0:02:44]} 10. Nxd2 {[%clk 0:02:46]}  O-O {[%clk 0:02:37]} 11. a3 {[%clk 0:02:39]}  Bxd2 {[%clk 0:02:28]} 12. Bxd2 {[%clk 0:02:40]}  d6 {[%clk 0:02:27]} 13. Rc1 {[%clk 0:02:39]}  Bf5 {[%clk 0:02:16]} 14. Qb3 {[%clk 0:02:39]}  Rb8 {[%clk 0:01:50]} 15. Qc3 {[%clk 0:02:21]}  Ng6 {[%clk 0:01:37]} 16. Be3 {[%clk 0:02:14]}  a6 {[%clk 0:01:12]} 17. Bd4 {[%clk 0:02:13]}  Qg5 {[%clk 0:01:06]} 18. Qg3 {[%clk 0:01:53]}  Qxg3 {[%clk 0:00:57]} 19. hxg3 {[%clk 0:01:54]}  Rfe8 {[%clk 0:00:53]} 20. Bb3 {[%clk 0:01:52]}  Rbc8 {[%clk 0:00:44]} 21. f3 {[%clk 0:01:45]}  Re2 {[%clk 0:00:38]} 22. Rf2 {[%clk 0:01:39]}  Rxf2 {[%clk 0:00:33]} 23. Kxf2 {[%clk 0:01:40]}  c5 {[%clk 0:00:29]} 24. dxc6 {[%clk 0:01:25]}  bxc6 {[%clk 0:00:29]} 25. Bc4 {[%clk 0:01:21]}  c5 {[%clk 0:00:23]} 26. Bc3 {[%clk 0:01:14]}  Rc6 {[%clk 0:00:20]} 27. Re1 {[%clk 0:01:04]}  Kf8 {[%clk 0:00:19]} 28. g4 {[%clk 0:01:02]}  Be6 {[%clk 0:00:10]} 29. Bxe6 {[%clk 0:01:00]}  fxe6 {[%clk 0:00:11]} 30. Rxe6 {[%clk 0:00:59]}  Nf4 {[%clk 0:00:12]} 31. Re4 {[%clk 0:00:55]}  g5 {[%clk 0:00:08]} 32. g3 {[%clk 0:00:46]}  Nd3+ {[%clk 0:00:06]} 33. Ke2 {[%clk 0:00:39]}  d5 {[%clk 0:00:06]} 34. Ra4 {[%clk 0:00:39]}  c4 {[%clk 0:00:06]} 35. Ra5 {[%clk 0:00:32]}  Re6+ {[%clk 0:00:06]} 36. Kd2 {[%clk 0:00:22]}  Ne1 {[%clk 0:00:05]} 37. Rxd5 {[%clk 0:00:20]}  Nxf3+ {[%clk 0:00:05]} 38. Kc2 {[%clk 0:00:20]}  Re2+ {[%clk 0:00:06]} 39. Kb1 {[%clk 0:00:20]}  h6 {[%clk 0:00:03]} 40. Rf5+ {[%clk 0:00:20]}  Ke7 {[%clk 0:00:03]} 41. Rxf3 {[%clk 0:00:21]}  Rg2 {[%clk 0:00:03]} 42. a4 {[%clk 0:00:19]}  h5 {[%clk 0:00:02]} 43. gxh5 {[%clk 0:00:19]}  g4 {[%clk 0:00:03]} 44. Re3+ {[%clk 0:00:19]}  Kf7 {[%clk 0:00:03]} 45. h6 {[%clk 0:00:19]}  Kg6 {[%clk 0:00:04]} 46. Bg7 {[%clk 0:00:19]}  Kh7 {[%clk 0:00:04]} 47. Rc3 {[%clk 0:00:19]}  a5 {[%clk 0:00:05]} 48. Ka2 {[%clk 0:00:19]}  Kg6 {[%clk 0:00:05]} 49. Ka3 {[%clk 0:00:19]}  Kh7 {[%clk 0:00:06]} 50. Ka2 {[%clk 0:00:19]}  Kg6 {[%clk 0:00:06]} 51. Re3 {[%clk 0:00:19]}  Kh7 {[%clk 0:00:07]} 52. Re4 {[%clk 0:00:18]}  Kg6 {[%clk 0:00:07]} 53. Rxg4+ {[%clk 0:00:18]}  Kh7 {[%clk 0:00:07]} 54. Rxc4 {[%clk 0:00:18]}  Rxg3 {[%clk 0:00:08]} 55. Rc5 {[%clk 0:00:19]}  Kg8 {[%clk 0:00:08]} 56. Rxa5 {[%clk 0:00:19]}  Rg6 {[%clk 0:00:08]} 57. Rb5 {[%clk 0:00:19]}  Kh7 {[%clk 0:00:08]} 58. a5 {[%clk 0:00:20]}  Ra6 {[%clk 0:00:09]} 59. b4 {[%clk 0:00:20]}  Ra7 {[%clk 0:00:10]} 60. Kb3 {[%clk 0:00:20]}  Kg6 {[%clk 0:00:10]} 61. Ka4 {[%clk 0:00:20]}  Kh7 {[%clk 0:00:11]} 62. Rc5 {[%clk 0:00:20]}  Ra6 {[%clk 0:00:11]} 63. b5 {[%clk 0:00:21]}  Ra7 {[%clk 0:00:12]} 64. a6 {[%clk 0:00:21]}  Ra8 {[%clk 0:00:12]} 65. Ka5 {[%clk 0:00:22]}  Rb8 {[%clk 0:00:12]} 66. b6 {[%clk 0:00:22]}  Re8 {[%clk 0:00:12]} 67. a7 {[%clk 0:00:22]}  Re1 {[%clk 0:00:13]} 68. Ka6 {[%clk 0:00:22]}  Re4 {[%clk 0:00:11]} 69. a8=Q {[%clk 0:00:21]}  Ra4+ {[%clk 0:00:11]} 70. Kb7 {[%clk 0:00:21]}  Rg4 {[%clk 0:00:11]} 71. Qh8+ {[%clk 0:00:21]}  Kg6 {[%clk 0:00:11]} 72. Rc6+ {[%clk 0:00:21]}  Kh5 {[%clk 0:00:11]} 73. Qe8+ {[%clk 0:00:22]}  Kh4 {[%clk 0:00:11]} 74. Bf6+ {[%clk 0:00:22]}  Kh3 {[%clk 0:00:11]} 75. Rc3+ {[%clk 0:00:22]}  Kg2 {[%clk 0:00:12]} 76. Qe2+ {[%clk 0:00:22]}  Kh1 {[%clk 0:00:13]} 77. Rc1+ {[%clk 0:00:21]}  Rg1 {[%clk 0:00:13]} 78. Qf3+ {[%clk 0:00:21]}  Kh2 {[%clk 0:00:14]} 79. Be5+ {[%clk 0:00:21]}  Rg3 {[%clk 0:00:14]} 80. Qxg3# {[%clk 0:00:21]} 1-0


[Site "https://www.chess.com"]

[Event "Titled Tuesday Blitz June 14 Late 2022"]
[White "Ladan, Nicholas"]
[Black "Isajevsky, Anton"]
[WhiteFideId "30918855"]
[BlackFideId "4142500"]
[WhiteElo "2167"]
[BlackElo "2510"]
[Result "0-1"]
[Round "09"]
[TimeControl "180+1"]
[Date "2022.06.15"]
[WhiteClock "0:00:11"]
[BlackClock "0:00:12"]

1. d4 {[%clk 0:03:00]}  d5 {[%clk 0:02:59]} 2. Bf4 {[%clk 0:02:58]}  c5 {[%clk 0:02:56]} 3. dxc5 {[%clk 0:02:58]}  Nc6 {[%clk 0:02:56]} 4. e3 {[%clk 0:02:58]}  e5 {[%clk 0:02:55]} 5. Bg3 {[%clk 0:02:58]}  Bxc5 {[%clk 0:02:54]} 6. Bb5 {[%clk 0:02:52]}  f6 {[%clk 0:02:52]} 7. c4 {[%clk 0:02:31]}  Ne7 {[%clk 0:02:46]} 8. Nc3 {[%clk 0:02:24]}  d4 {[%clk 0:02:39]} 9. exd4 {[%clk 0:02:24]}  exd4 {[%clk 0:02:39]} 10. Qh5+ {[%clk 0:02:21]}  g6 {[%clk 0:01:59]} 11. Qxc5 {[%clk 0:02:20]}  dxc3 {[%clk 0:01:59]} 12. bxc3 {[%clk 0:02:11]}  O-O {[%clk 0:01:27]} 13. Nf3 {[%clk 0:02:07]}  Qd3 {[%clk 0:01:19]} 14. Qe3 {[%clk 0:01:51]}  Qxe3+ {[%clk 0:01:18]} 15. fxe3 {[%clk 0:01:51]}  Nf5 {[%clk 0:00:50]} 16. Bf2 {[%clk 0:01:31]}  Na5 {[%clk 0:00:47]} 17. c5 {[%clk 0:01:17]}  Be6 {[%clk 0:00:16]} 18. Nd4 {[%clk 0:01:16]}  Bc4 {[%clk 0:00:16]} 19. Bd7 {[%clk 0:01:07]}  Ne7 {[%clk 0:00:12]} 20. Bg3 {[%clk 0:00:54]}  Rfd8 {[%clk 0:00:05]} 21. Ba4 {[%clk 0:00:50]}  Nac6 {[%clk 0:00:04]} 22. Bd6 {[%clk 0:00:40]}  Kf7 {[%clk 0:00:05]} 23. Rb1 {[%clk 0:00:38]}  Ba6 {[%clk 0:00:05]} 24. Bb3+ {[%clk 0:00:37]}  Ke8 {[%clk 0:00:04]} 25. Ne6 {[%clk 0:00:35]}  Na5 {[%clk 0:00:01]} 26. Nc7+ {[%clk 0:00:31]}  Kd7 {[%clk 0:00:01]} 27. Be6+ {[%clk 0:00:22]}  Kc6 {[%clk 0:00:01]} 28. Nxa8 {[%clk 0:00:22]}  Rxa8 {[%clk 0:00:01]} 29. Bxe7 {[%clk 0:00:22]}  Re8 {[%clk 0:00:01]} 30. Rd1 {[%clk 0:00:09]}  Rxe7 {[%clk 0:00:01]} 31. Bg8 {[%clk 0:00:03]}  Kxc5 {[%clk 0:00:02]} 32. Kf2 {[%clk 0:00:03]}  Nc6 {[%clk 0:00:02]} 33. Rd5+ {[%clk 0:00:03]}  Kb6 {[%clk 0:00:02]} 34. Rb1+ {[%clk 0:00:03]}  Kc7 {[%clk 0:00:03]} 35. Rc5 {[%clk 0:00:02]}  b6 {[%clk 0:00:02]} 36. Rd5 {[%clk 0:00:02]}  Bb7 {[%clk 0:00:03]} 37. Rd2 {[%clk 0:00:02]}  Ne5 {[%clk 0:00:03]} 38. Bd5 {[%clk 0:00:02]}  Bxd5 {[%clk 0:00:03]} 39. Rxd5 {[%clk 0:00:03]}  Ng4+ {[%clk 0:00:04]} 40. Kg3 {[%clk 0:00:04]}  Nxe3 {[%clk 0:00:04]} 41. Rd3 {[%clk 0:00:03]}  Nf5+ {[%clk 0:00:05]} 42. Kf2 {[%clk 0:00:04]}  h5 {[%clk 0:00:06]} 43. Rbd1 {[%clk 0:00:04]}  Kc6 {[%clk 0:00:06]} 44. g3 {[%clk 0:00:05]}  g5 {[%clk 0:00:06]} 45. h3 {[%clk 0:00:05]}  Re6 {[%clk 0:00:06]} 46. g4 {[%clk 0:00:06]}  hxg4 {[%clk 0:00:07]} 47. hxg4 {[%clk 0:00:07]}  Nd6 {[%clk 0:00:08]} 48. Rd4 {[%clk 0:00:06]}  Kc5 {[%clk 0:00:08]} 49. Rd5+ {[%clk 0:00:07]}  Kc6 {[%clk 0:00:08]} 50. c4 {[%clk 0:00:06]}  Nxc4 {[%clk 0:00:08]} 51. Rf5 {[%clk 0:00:06]}  Nd6 {[%clk 0:00:09]} 52. Rc1+ {[%clk 0:00:05]}  Kd7 {[%clk 0:00:09]} 53. Rd5 {[%clk 0:00:05]}  b5 {[%clk 0:00:09]} 54. Rcd1 {[%clk 0:00:04]}  Kc6 {[%clk 0:00:09]} 55. R5d3 {[%clk 0:00:03]}  a5 {[%clk 0:00:08]} 56. Rc3+ {[%clk 0:00:03]}  Kb6 {[%clk 0:00:08]} 57. Rdc1 {[%clk 0:00:02]}  Nc4 {[%clk 0:00:08]} 58. Rh3 {[%clk 0:00:02]}  Rd6 {[%clk 0:00:07]} 59. Rh6 {[%clk 0:00:02]}  Kc5 {[%clk 0:00:07]} 60. Kf3 {[%clk 0:00:01]}  a4 {[%clk 0:00:08]} 61. Ke4 {[%clk 0:00:01]}  Kb4 {[%clk 0:00:07]} 62. Rb1+ {[%clk 0:00:01]}  Kc5 {[%clk 0:00:06]} 63. Kf5 {[%clk 0:00:01]}  Ne3+ {[%clk 0:00:06]} 64. Kg6 {[%clk 0:00:01]}  Nd5 {[%clk 0:00:06]} 65. Kf7 {[%clk 0:00:01]}  Nc3 {[%clk 0:00:06]} 66. Rxf6 {[%clk 0:00:01]}  Rxf6+ {[%clk 0:00:06]} 67. Kxf6 {[%clk 0:00:02]}  Nxb1 {[%clk 0:00:07]} 68. Kxg5 {[%clk 0:00:03]}  Nc3 {[%clk 0:00:07]} 69. Kf6 {[%clk 0:00:04]}  b4 {[%clk 0:00:07]} 70. g5 {[%clk 0:00:04]}  Ne4+ {[%clk 0:00:07]} 71. Kf5 {[%clk 0:00:05]}  Nxg5 {[%clk 0:00:08]} 72. Kxg5 {[%clk 0:00:05]}  b3 {[%clk 0:00:08]} 73. axb3 {[%clk 0:00:06]}  axb3 {[%clk 0:00:09]} 74. Kf4 {[%clk 0:00:06]}  b2 {[%clk 0:00:10]} 75. Ke3 {[%clk 0:00:07]}  b1=Q {[%clk 0:00:10]} 76. Kf3 {[%clk 0:00:08]}  Qf5+ {[%clk 0:00:11]} 77. Kg2 {[%clk 0:00:09]}  Kd4 {[%clk 0:00:11]} 78. Kg3 {[%clk 0:00:10]}  Ke3 {[%clk 0:00:12]} 79. Kg2 {[%clk 0:00:10]}  Qf4 {[%clk 0:00:12]} 80. Kh1 {[%clk 0:00:10]}  Qg4 {[%clk 0:00:12]} 81. Kh2 {[%clk 0:00:10]}  Kf2 {[%clk 0:00:12]} 82. Kh1 {[%clk 0:00:11]}  Qh4# {[%clk 0:00:12]} 0-1


[Site "https://www.chess.com"]

[Event "Titled Tuesday Blitz June 14 Late 2022"]
[White "Lashkin, Jegor"]
[Black "Hoffmann, Asa"]
[WhiteFideId "13907808"]
[BlackFideId "2001470"]
[WhiteElo "2368"]
[BlackElo "2117"]
[Result "1-0"]
[Round "09"]
[TimeControl "180+1"]
[Date "2022.06.14"]
[WhiteClock "0:00:46"]
[BlackClock "0:01:21"]

1. d4 {[%clk 0:02:30]}  Nf6 {[%clk 0:02:59]} 2. c4 {[%clk 0:02:30]}  c5 {[%clk 0:02:58]} 3. d5 {[%clk 0:02:30]}  e5 {[%clk 0:02:58]} 4. Nc3 {[%clk 0:02:30]}  d6 {[%clk 0:02:58]} 5. e4 {[%clk 0:02:30]}  Be7 {[%clk 0:02:58]} 6. g3 {[%clk 0:02:27]}  O-O {[%clk 0:02:57]} 7. Bg2 {[%clk 0:02:27]}  Na6 {[%clk 0:02:57]} 8. Nge2 {[%clk 0:02:27]}  Ne8 {[%clk 0:02:56]} 9. O-O {[%clk 0:02:26]}  Bd7 {[%clk 0:02:56]} 10. Be3 {[%clk 0:02:25]}  Nec7 {[%clk 0:02:55]} 11. a4 {[%clk 0:02:18]}  Nb4 {[%clk 0:02:54]} 12. Qd2 {[%clk 0:02:18]}  b6 {[%clk 0:02:54]} 13. f4 {[%clk 0:02:17]}  Bf6 {[%clk 0:02:53]} 14. f5 {[%clk 0:02:16]}  Qe7 {[%clk 0:02:49]} 15. Kh1 {[%clk 0:02:14]}  a6 {[%clk 0:02:49]} 16. b3 {[%clk 0:02:13]}  b5 {[%clk 0:02:48]} 17. a5 {[%clk 0:02:11]}  bxc4 {[%clk 0:02:48]} 18. bxc4 {[%clk 0:02:12]}  Rab8 {[%clk 0:02:47]} 19. Ng1 {[%clk 0:02:10]}  h6 {[%clk 0:02:46]} 20. Nf3 {[%clk 0:02:09]}  Kh7 {[%clk 0:02:38]} 21. h4 {[%clk 0:02:06]}  Rh8 {[%clk 0:02:37]} 22. Rad1 {[%clk 0:01:51]}  Kg8 {[%clk 0:02:24]} 23. Bxc5 {[%clk 0:01:47]}  Ne8 {[%clk 0:02:14]} 24. Be3 {[%clk 0:01:24]}  Qd8 {[%clk 0:02:11]} 25. Rb1 {[%clk 0:01:12]}  Qc7 {[%clk 0:02:03]} 26. Rfc1 {[%clk 0:01:01]}  g6 {[%clk 0:01:57]} 27. Bb6 {[%clk 0:00:56]}  Rxb6 {[%clk 0:01:52]} 28. axb6 {[%clk 0:00:56]}  Qxb6 {[%clk 0:01:48]} 29. Na4 {[%clk 0:00:52]}  Qa5 {[%clk 0:01:42]} 30. Qxb4 {[%clk 0:00:50]}  Qxa4 {[%clk 0:01:40]} 31. Qxa4 {[%clk 0:00:50]}  Bxa4 {[%clk 0:01:40]} 32. fxg6 {[%clk 0:00:50]}  fxg6 {[%clk 0:01:37]} 33. Bh3 {[%clk 0:00:47]}  g5 {[%clk 0:01:30]} 34. Be6+ {[%clk 0:00:46]}  Kg7 {[%clk 0:01:26]} 35. Rb7+ {[%clk 0:00:46]}  Kg6 {[%clk 0:01:24]} 36. h5+ {[%clk 0:00:45]}  Kxh5 {[%clk 0:01:24]} 37. g4+ {[%clk 0:00:45]}  Kg6 {[%clk 0:01:21]} 38. Bf5# {[%clk 0:00:46]} 1-0


[Site "https://www.chess.com"]

[Event "Titled Tuesday Blitz June 14 Late 2022"]
[White "Mammadova, Gulnar"]
[Black "Beulen, Marcel"]
[WhiteFideId "13403508"]
[BlackFideId "1001450"]
[WhiteElo "2255"]
[BlackElo "2412"]
[Result "1/2-1/2"]
[Round "09"]
[TimeControl "180+1"]
[Date "2022.06.14"]
[WhiteClock "0:00:21"]
[BlackClock "0:00:05"]

1. e4 {[%clk 0:03:00]}  d5 {[%clk 0:02:59]} 2. exd5 {[%clk 0:03:00]}  Qxd5 {[%clk 0:03:00]} 3. Nc3 {[%clk 0:03:00]}  Qa5 {[%clk 0:03:00]} 4. Nf3 {[%clk 0:02:59]}  Nf6 {[%clk 0:03:00]} 5. g3 {[%clk 0:02:59]}  c6 {[%clk 0:02:50]} 6. Bg2 {[%clk 0:02:58]}  Bf5 {[%clk 0:02:47]} 7. O-O {[%clk 0:02:58]}  e6 {[%clk 0:02:47]} 8. a3 {[%clk 0:02:58]}  Nbd7 {[%clk 0:02:46]} 9. d3 {[%clk 0:02:57]}  Be7 {[%clk 0:02:45]} 10. Bf4 {[%clk 0:02:57]}  h6 {[%clk 0:02:44]} 11. b4 {[%clk 0:02:56]}  Qd8 {[%clk 0:02:43]} 12. Nd4 {[%clk 0:02:56]}  Bg6 {[%clk 0:02:40]} 13. Qe2 {[%clk 0:02:52]}  O-O {[%clk 0:02:38]} 14. Rad1 {[%clk 0:02:49]}  a6 {[%clk 0:02:38]} 15. Rfe1 {[%clk 0:02:41]}  Re8 {[%clk 0:02:37]} 16. Nf3 {[%clk 0:02:38]}  Rc8 {[%clk 0:02:30]} 17. h4 {[%clk 0:02:33]}  Bf8 {[%clk 0:02:26]} 18. Ne5 {[%clk 0:02:30]}  Nxe5 {[%clk 0:02:19]} 19. Bxe5 {[%clk 0:02:31]}  Nd5 {[%clk 0:02:09]} 20. Ne4 {[%clk 0:02:26]}  f6 {[%clk 0:02:07]} 21. Bb2 {[%clk 0:02:25]}  e5 {[%clk 0:02:06]} 22. c4 {[%clk 0:02:24]}  Nc7 {[%clk 0:01:50]} 23. Qg4 {[%clk 0:02:23]}  Kh7 {[%clk 0:01:13]} 24. h5 {[%clk 0:02:22]}  Bf7 {[%clk 0:01:13]} 25. Qf5+ {[%clk 0:02:20]}  Kg8 {[%clk 0:01:12]} 26. Qf3 {[%clk 0:02:18]}  Ne6 {[%clk 0:01:09]} 27. Bh3 {[%clk 0:02:18]}  Qc7 {[%clk 0:00:52]} 28. Bf5 {[%clk 0:02:17]}  Rcd8 {[%clk 0:00:50]} 29. Qg4 {[%clk 0:02:11]}  Ng5 {[%clk 0:00:43]} 30. Bc1 {[%clk 0:02:11]}  Nxe4 {[%clk 0:00:35]} 31. Bxe4 {[%clk 0:02:07]}  Qc8 {[%clk 0:00:34]} 32. Bf5 {[%clk 0:02:06]}  Be6 {[%clk 0:00:34]} 33. Bxe6+ {[%clk 0:02:06]}  Qxe6 {[%clk 0:00:34]} 34. Qg6 {[%clk 0:02:03]}  Qf7 {[%clk 0:00:33]} 35. Qf5 {[%clk 0:02:02]}  Qe6 {[%clk 0:00:32]} 36. Qf3 {[%clk 0:01:57]}  Rd7 {[%clk 0:00:30]} 37. Bb2 {[%clk 0:01:52]}  Qf7 {[%clk 0:00:29]} 38. c5 {[%clk 0:01:43]}  Red8 {[%clk 0:00:29]} 39. Re3 {[%clk 0:01:42]}  Qd5 {[%clk 0:00:25]} 40. Qxd5+ {[%clk 0:01:41]}  Rxd5 {[%clk 0:00:25]} 41. Kf1 {[%clk 0:01:41]}  Kf7 {[%clk 0:00:25]} 42. Ke2 {[%clk 0:01:42]}  Be7 {[%clk 0:00:25]} 43. g4 {[%clk 0:01:40]}  R8d7 {[%clk 0:00:23]} 44. Bc3 {[%clk 0:01:39]}  Bd8 {[%clk 0:00:23]} 45. Rf1 {[%clk 0:01:38]}  Bc7 {[%clk 0:00:23]} 46. a4 {[%clk 0:01:38]}  Ke6 {[%clk 0:00:23]} 47. Rb1 {[%clk 0:01:38]}  Rd8 {[%clk 0:00:20]} 48. Be1 {[%clk 0:01:25]}  R8d7 {[%clk 0:00:20]} 49. f3 {[%clk 0:01:26]}  Kf7 {[%clk 0:00:20]} 50. b5 {[%clk 0:01:23]}  cxb5 {[%clk 0:00:20]} 51. axb5 {[%clk 0:01:24]}  Rxc5 {[%clk 0:00:20]} 52. bxa6 {[%clk 0:01:24]}  bxa6 {[%clk 0:00:20]} 53. Rb7 {[%clk 0:01:21]}  Ke6 {[%clk 0:00:19]} 54. f4 {[%clk 0:01:16]}  Rb5 {[%clk 0:00:18]} 55. Ra7 {[%clk 0:01:15]}  Bb6 {[%clk 0:00:16]} 56. Rxa6 {[%clk 0:01:14]}  Rd6 {[%clk 0:00:16]} 57. Re4 {[%clk 0:01:11]}  Rd4 {[%clk 0:00:11]} 58. Rxd4 {[%clk 0:01:05]}  exd4 {[%clk 0:00:09]} 59. Kf3 {[%clk 0:01:05]}  Kd5 {[%clk 0:00:09]} 60. Ra3 {[%clk 0:01:01]}  Bc5 {[%clk 0:00:09]} 61. Ra8 {[%clk 0:01:00]}  Rb3 {[%clk 0:00:09]} 62. Rd8+ {[%clk 0:00:59]}  Ke6 {[%clk 0:00:08]} 63. Ke4 {[%clk 0:00:58]}  Rb2 {[%clk 0:00:07]} 64. f5+ {[%clk 0:00:31]}  Ke7 {[%clk 0:00:07]} 65. Rc8 {[%clk 0:00:31]}  Re2+ {[%clk 0:00:07]} 66. Kd5 {[%clk 0:00:31]}  Rxe1 {[%clk 0:00:07]} 67. Kxc5 {[%clk 0:00:31]}  Rg1 {[%clk 0:00:07]} 68. Rc7+ {[%clk 0:00:29]}  Kf8 {[%clk 0:00:07]} 69. Kd6 {[%clk 0:00:27]}  Rxg4 {[%clk 0:00:06]} 70. Ke6 {[%clk 0:00:28]}  Kg8 {[%clk 0:00:05]} 71. Rd7 {[%clk 0:00:28]}  Kh7 {[%clk 0:00:06]} 72. Kf7 {[%clk 0:00:25]}  Rf4 {[%clk 0:00:04]} 73. Kf8 {[%clk 0:00:25]}  Rg4 {[%clk 0:00:05]} 74. Re7 {[%clk 0:00:20]}  Rg5 {[%clk 0:00:05]} 75. Rd7 {[%clk 0:00:21]}  Rg4 {[%clk 0:00:05]} 76. Rf7 {[%clk 0:00:19]}  Rg5 {[%clk 0:00:05]} 77. Rc7 {[%clk 0:00:19]}  Rg4 {[%clk 0:00:05]} 78. Rd7 {[%clk 0:00:20]}  Rg5 {[%clk 0:00:05]} 79. Rxd4 {[%clk 0:00:20]}  Rxf5 {[%clk 0:00:05]} 80. Rd7 {[%clk 0:00:21]}  Rxh5 {[%clk 0:00:05]} 81. Rxg7+ {[%clk 0:00:20]}  Kh8 {[%clk 0:00:04]} 82. Rd7 {[%clk 0:00:20]}  Rh1 {[%clk 0:00:04]} 83. d4 {[%clk 0:00:19]}  h5 {[%clk 0:00:04]} 84. d5 {[%clk 0:00:20]}  h4 {[%clk 0:00:03]} 85. d6 {[%clk 0:00:21]}  Rd1 {[%clk 0:00:04]} 86. Ke7 {[%clk 0:00:20]}  Kg7 {[%clk 0:00:03]} 87. Ra7 {[%clk 0:00:20]}  Kg6 {[%clk 0:00:02]} 88. Ra3 {[%clk 0:00:19]}  Kg5 {[%clk 0:00:02]} 89. d7 {[%clk 0:00:19]}  Rxd7+ {[%clk 0:00:02]} 90. Kxd7 {[%clk 0:00:19]}  Kg4 {[%clk 0:00:03]} 91. Ke6 {[%clk 0:00:20]}  h3 {[%clk 0:00:03]} 92. Kxf6 {[%clk 0:00:20]}  h2 {[%clk 0:00:03]} 93. Ra1 {[%clk 0:00:20]}  Kg3 {[%clk 0:00:04]} 94. Kg5 {[%clk 0:00:21]}  Kg2 {[%clk 0:00:04]} 95. Kg4 {[%clk 0:00:21]}  h1=Q {[%clk 0:00:04]} 96. Ra2+ {[%clk 0:00:22]}  Kg1 {[%clk 0:00:05]} 97. Ra1+ {[%clk 0:00:21]}  Kg2 {[%clk 0:00:05]} 98. Rxh1 {[%clk 0:00:21]}  Kxh1 {[%clk 0:00:05]} 1/2-1/2


[Site "https://www.chess.com"]

[Event "Titled Tuesday Blitz June 14 Late 2022"]
[White "Martin Carmona, Gaston Manuel"]
[Black "Korchmar, Vasiliy"]
[WhiteFideId "22284567"]
[BlackFideId "24131750"]
[WhiteElo "2162"]
[BlackElo "2370"]
[Result "0-1"]
[Round "09"]
[TimeControl "180+1"]
[Date "2022.06.14"]
[WhiteClock "0:00:53"]
[BlackClock "0:01:45"]

1. d4 {[%clk 0:03:00]}  d5 {[%clk 0:02:59]} 2. c4 {[%clk 0:02:58]}  c6 {[%clk 0:03:00]} 3. Nc3 {[%clk 0:02:57]}  Nf6 {[%clk 0:03:00]} 4. Nf3 {[%clk 0:02:58]}  e6 {[%clk 0:03:00]} 5. e3 {[%clk 0:02:58]}  Nbd7 {[%clk 0:02:59]} 6. Be2 {[%clk 0:02:59]}  Bd6 {[%clk 0:02:57]} 7. b3 {[%clk 0:02:58]}  O-O {[%clk 0:02:57]} 8. Bb2 {[%clk 0:02:59]}  dxc4 {[%clk 0:02:51]} 9. bxc4 {[%clk 0:02:59]}  e5 {[%clk 0:02:52]} 10. O-O {[%clk 0:02:55]}  e4 {[%clk 0:02:44]} 11. Nd2 {[%clk 0:02:55]}  Re8 {[%clk 0:02:44]} 12. Qc2 {[%clk 0:02:55]}  Qe7 {[%clk 0:02:43]} 13. Rae1 {[%clk 0:02:39]}  Nf8 {[%clk 0:02:40]} 14. f3 {[%clk 0:02:39]}  exf3 {[%clk 0:02:28]} 15. Bxf3 {[%clk 0:02:40]}  Ng4 {[%clk 0:02:11]} 16. Bxg4 {[%clk 0:02:23]}  Bxg4 {[%clk 0:02:11]} 17. Nf3 {[%clk 0:02:23]}  Ng6 {[%clk 0:02:07]} 18. e4 {[%clk 0:02:17]}  Bxf3 {[%clk 0:02:01]} 19. Rxf3 {[%clk 0:02:15]}  Bxh2+ {[%clk 0:02:01]} 20. Kf1 {[%clk 0:01:54]}  Bf4 {[%clk 0:02:01]} 21. e5 {[%clk 0:01:53]}  Rad8 {[%clk 0:01:59]} 22. Qe4 {[%clk 0:01:51]}  Bh6 {[%clk 0:01:58]} 23. Kg1 {[%clk 0:01:50]}  Qb4 {[%clk 0:01:58]} 24. Re2 {[%clk 0:01:09]}  Qxc4 {[%clk 0:01:57]} 25. Qf5 {[%clk 0:01:03]}  Qxd4+ {[%clk 0:01:55]} 26. Kh1 {[%clk 0:00:57]}  Nxe5 {[%clk 0:01:54]} 27. Rh3 {[%clk 0:00:53]}  Ng4 {[%clk 0:01:45]} 0-1


[Site "https://www.chess.com"]